fUSD/lending_fUSD_20250113
["ID","MTS","AMOUNT","RATE_DAILY","PERIOD"]
[348751814,1736770258996,-500.0,0.0001082,2]
[348751815,1736770259005,-500.0,0.0001082,2]
[348751816,1736770259014,-384.8,0.0001082,2]
[348751817,1736770259024,-500.0,0.0001082,2]
[348751818,1736770259034,-500.0,0.0001082,2]
[348751819,1736770259043,-500.0,0.0001082,2]
[348751820,1736770259053,-572.81265134,0.0001082,2]
[348751821,1736770259063,-500.0,0.0001082,2]
[348751822,1736770259073,-500.0,0.0001082,2]
[348751823,1736770259083,-500.0,0.0001082,2]
[348751824,1736770259092,-500.0,0.0001082,2]
[348751825,1736770259102,-500.0,0.0001082,2]
[348751826,1736770259111,-500.0,0.0001082,2]
[348751827,1736770259121,-500.0,0.0001082,2]
[348751828,1736770259131,-500.0,0.0001082,2]
[348751829,1736770259140,-500.0,0.0001082,2]
[348751830,1736770259149,-500.0,0.0001082,2]
[348751831,1736770259159,-500.0,0.0001082,2]
[348751832,1736770259168,-500.0,0.0001082,2]
[348751833,1736770259179,-500.0,0.0001082,2]
[348751834,1736770259188,-500.0,0.0001082,2]
[348751835,1736770259198,-500.0,0.0001082,2]
[348751836,1736770259207,-500.0,0.0001082,2]
[348751837,1736770259217,-500.0,0.0001082,2]
[348751838,1736770259229,-500.0,0.0001082,2]
[348751839,1736770259242,-500.0,0.0001082,2]
[348751840,1736770259253,-500.0,0.0001082,2]
[348751841,1736770259264,-500.0,0.0001082,2]
[348751842,1736770259276,-600.28,0.0001082,2]
[348751843,1736770259288,-500.0,0.0001082,2]
[348751844,1736770259299,-500.0,0.0001082,2]
[348751845,1736770259311,-880.04,0.0001082,2]
[348751846,1736770259325,-500.0,0.0001082,2]
[348751847,1736770259337,-500.0,0.0001082,2]
[348751848,1736770259349,-500.0,0.0001082,2]
[348751849,1736770259360,-500.0,0.0001082,2]
[348751850,1736770259371,-500.0,0.0001082,2]
[348751851,1736770259383,-500.0,0.0001082,2]
[348751852,1736770259394,-500.0,0.0001082,2]
[348751853,1736770259404,-500.0,0.0001082,2]
[348751854,1736770259415,-500.0,0.0001082,2]
[348751855,1736770259427,-500.0,0.0001082,2]
[348751856,1736770259437,-500.0,0.0001082,2]
[348751857,1736770259448,-500.0,0.0001082,2]
[348751858,1736770259458,-1508.58,0.0001082,2]
[348751859,1736770259469,-500.0,0.0001082,2]
[348751860,1736770259479,-500.0,0.0001082,2]
[348751861,1736770259489,-500.0,0.0001082,2]
[348751862,1736770259500,-500.0,0.0001082,2]
[348751863,1736770259510,-500.0,0.0001082,2]
[348751864,1736770259520,-500.0,0.0001082,2]
[348751865,1736770259531,-500.0,0.0001082,2]
[348751866,1736770259541,-500.0,0.0001082,2]
[348751867,1736770259551,-500.0,0.0001082,2]
[348751868,1736770259561,-660.3,0.0001082,2]
[348751869,1736770259572,-764.16,0.0001082,2]
[348751870,1736770259582,-500.0,0.0001082,2]
[348751871,1736770259592,-500.0,0.0001082,2]
[348751872,1736770259602,-500.0,0.0001082,2]
[348751873,1736770259612,-500.0,0.0001082,2]
[348751874,1736770259623,-500.0,0.0001082,2]
[348751875,1736770259633,-500.0,0.0001082,2]
[348751876,1736770259643,-500.0,0.0001082,2]
[348751877,1736770259654,-500.0,0.0001082,2]
[348751878,1736770259664,-500.0,0.0001082,2]
[348751879,1736770259675,-500.0,0.0001082,2]
[348751880,1736770259687,-500.0,0.0001082,2]
[348751881,1736770259697,-500.0,0.0001082,2]
[348751882,1736770259708,-510.5,0.0001082,2]
[348751883,1736770259718,-500.0,0.0001082,2]
[348751884,1736770259728,-500.0,0.0001082,2]
[348751885,1736770259738,-500.0,0.0001082,2]
[348751886,1736770259747,-500.0,0.0001082,2]
[348751887,1736770259758,-1562.56,0.0001082,2]
[348751888,1736770259768,-500.0,0.0001082,2]
[348751889,1736770259778,-365.54168121,0.0001082,2]
[348751890,1736770259788,-599.537812,0.0001082,2]
[348751891,1736770259798,-500.0,0.0001082,2]
[348751892,1736770259808,-1706.86,0.0001082,2]
[348751893,1736770259818,-500.0,0.0001082,2]
[348751894,1736770259827,-500.0,0.0001082,2]
[348751895,1736770259837,-500.0,0.0001082,2]
[348751896,1736770259847,-500.0,0.0001082,2]
[348751897,1736770259857,-500.0,0.0001082,2]
[348751898,1736770259868,-500.0,0.0001082,2]
[348751899,1736770259878,-500.0,0.0001082,2]
[348751900,1736770259888,-500.0,0.0001082,2]
[348751901,1736770259897,-500.0,0.0001082,2]
[348751902,1736770259907,-500.0,0.0001082,2]
[348751903,1736770260065,-688.070828,0.0001082,2]
[348751904,1736770260092,-500.0,0.0001082,2]
[348751905,1736770260102,-500.0,0.0001082,2]
[348751906,1736770260112,-500.0,0.0001082,2]
[348751907,1736770260122,-2424.34,0.0001082,2]
[348751908,1736770260132,-500.0,0.0001082,2]
[348751909,1736770260141,-500.0,0.0001082,2]
[348751910,1736770260151,-500.0,0.0001082,2]
[348751911,1736770260160,-162.658636,0.0001082,2]
[348751912,1736770260169,-500.0,0.0001082,2]
[348751913,1736770260180,-500.0,0.0001082,2]
[348751914,1736770260189,-1717.3,0.0001082,2]
[348751915,1736770260198,-500.0,0.0001082,2]
[348751916,1736770260207,-500.0,0.0001082,2]
[348751917,1736770260216,-500.0,0.0001082,2]
[348751918,1736770260226,-500.0,0.0001082,2]
[348751919,1736770260236,-500.0,0.0001082,2]
[348751920,1736770260246,-500.0,0.0001082,2]
[348751921,1736770260259,-500.0,0.0001082,2]
[348751922,1736770260269,-1659.5,0.0001082,2]
[348751923,1736770260278,-500.0,0.0001082,2]
[348751924,1736770260287,-500.0,0.0001082,2]
[348751925,1736770260298,-1325.24,0.0001082,2]
[348751926,1736770260307,-170.466152,0.0001082,2]
[348751927,1736770260316,-500.0,0.0001082,2]
[348751928,1736770260325,-500.0,0.0001082,2]
[348751929,1736770260334,-500.0,0.0001082,2]
[348751930,1736770260343,-500.0,0.0001082,2]
[348751931,1736770260353,-500.0,0.0001082,2]
[348751932,1736770260363,-500.0,0.0001082,2]
[348751933,1736770260372,-500.0,0.0001082,2]
[348751934,1736770260382,-500.0,0.0001082,2]
[348751935,1736770260392,-500.0,0.0001082,2]
[348751936,1736770260402,-500.0,0.0001082,2]
[348751937,1736770260412,-500.0,0.0001082,2]
[348751938,1736770260422,-500.0,0.0001082,2]
[348751939,1736770260436,-500.0,0.0001082,2]
[348751940,1736770260446,-500.0,0.0001082,2]
[348751941,1736770260456,-500.0,0.0001082,2]
[348751942,1736770260466,-500.0,0.0001082,2]
[348751943,1736770260476,-500.0,0.0001082,2]
[348751944,1736770260486,-500.0,0.0001082,2]
[348751945,1736770260496,-500.0,0.0001082,2]
[348751946,1736770260506,-500.0,0.0001082,2]
[348751947,1736770260516,-500.0,0.0001082,2]
[348751948,1736770260525,-500.0,0.0001082,2]
[348751949,1736770260535,-500.0,0.0001082,2]
[348751950,1736770260545,-500.0,0.0001082,2]
[348751951,1736770260555,-500.0,0.0001082,2]
[348751952,1736770260564,-944.03,0.0001082,2]
[348751953,1736770260574,-500.0,0.0001082,2]
[348751954,1736770260584,-500.0,0.0001082,2]
[348751955,1736770260593,-500.0,0.0001082,2]
[348751956,1736770260603,-500.0,0.0001082,2]
[348751957,1736770260612,-500.0,0.0001082,2]
[348751958,1736770260622,-624.14,0.0001082,2]
[348751959,1736770260631,-500.0,0.0001082,2]
[348751960,1736770260641,-500.0,0.0001082,2]
[348751961,1736770260651,-749.67,0.0001082,2]
[348751962,1736770260660,-500.0,0.0001082,2]
[348751963,1736770260670,-500.0,0.0001082,2]
[348751964,1736770260683,-500.0,0.0001082,2]
[348751965,1736770260692,-500.0,0.0001082,2]
[348751966,1736770260701,-500.0,0.0001082,2]
[348751967,1736770260711,-500.0,0.0001082,2]
[348751968,1736770260720,-500.0,0.0001082,2]
[348751969,1736770260730,-500.0,0.0001082,2]
[348751970,1736770260740,-500.0,0.0001082,2]
[348751971,1736770260750,-500.0,0.0001082,2]
[348751972,1736770260760,-500.0,0.0001082,2]
[348751973,1736770260769,-500.0,0.0001082,2]
[348751974,1736770260779,-500.0,0.0001082,2]
[348751975,1736770260790,-500.0,0.0001082,2]
[348751976,1736770260799,-500.0,0.0001082,2]
[348751977,1736770260809,-500.0,0.0001082,2]
[348751978,1736770260819,-500.0,0.0001082,2]
[348751979,1736770260829,-500.0,0.0001082,2]
[348751980,1736770260838,-500.0,0.0001082,2]
[348751981,1736770260849,-500.0,0.0001082,2]
[348751982,1736770260859,-500.0,0.0001082,2]
[348751983,1736770260868,-1648.37,0.0001082,2]
[348751984,1736770260877,-500.0,0.0001082,2]
[348751985,1736770260887,-500.0,0.0001082,2]
[348751986,1736770260896,-500.0,0.0001082,2]
[348751987,1736770260906,-162.658635,0.0001082,2]
[348751988,1736770260915,-500.0,0.0001082,2]
[348751989,1736770260925,-500.0,0.0001082,2]
[348751990,1736770260939,-500.0,0.0001082,2]
[348751991,1736770260949,-500.0,0.0001082,2]
[348751992,1736770260959,-500.0,0.0001082,2]
[348751993,1736770260970,-500.0,0.0001082,2]
[348751994,1736770260980,-757.78,0.0001082,2]
[348751995,1736770260990,-346.66,0.0001082,2]
[348751996,1736770261000,-500.0,0.0001082,2]
[348751997,1736770261010,-616.79694943,0.0001082,2]
[348751998,1736770261019,-680.25,0.0001082,2]
[348751999,1736770261029,-500.0,0.0001082,2]
[348752000,1736770261039,-777.94,0.0001082,2]
[348752001,1736770261049,-500.0,0.0001082,2]
[348752002,1736770261059,-500.0,0.0001082,2]
[348752003,1736770261068,-500.0,0.0001082,2]
[348752004,1736770261079,-500.0,0.0001082,2]
[348752005,1736770261089,-500.0,0.0001082,2]
[348752006,1736770261098,-500.0,0.0001082,2]
[348752007,1736770261108,-500.0,0.0001082,2]
[348752008,1736770261117,-500.0,0.0001082,2]
[348752009,1736770261126,-170.466151,0.0001082,2]
[348752010,1736770261135,-500.0,0.0001082,2]
[348752011,1736770261144,-500.0,0.0001082,2]
[348752012,1736770261155,-975.0,0.0001082,2]
[348752013,1736770261165,-500.0,0.0001082,2]
[348752014,1736770261176,-500.0,0.0001082,2]
[348752015,1736770261189,-827.88,0.0001082,2]
[348752016,1736770261199,-765.44,0.0001082,2]
[348752017,1736770261208,-500.0,0.0001082,2]
[348752018,1736770261217,-619.44,0.0001082,2]
[348752019,1736770261228,-500.0,0.0001082,2]
[348752020,1736770261238,-500.0,0.0001082,2]
[348752021,1736770261251,-1125.92,0.0001082,2]
[348752022,1736770261264,-500.0,0.0001082,2]
[348752023,1736770261275,-739.46,0.0001082,2]
[348752024,1736770261285,-500.0,0.0001082,2]
[348752025,1736770261294,-500.0,0.0001082,2]
[348752026,1736770261303,-500.0,0.0001082,2]
[348752027,1736770261313,-500.0,0.0001082,2]
[348752028,1736770261324,-500.0,0.0001082,2]
[348752029,1736770261334,-500.0,0.0001082,2]
[348752030,1736770261344,-500.0,0.0001082,2]
[348752031,1736770261354,-912.06,0.0001082,2]
[348752032,1736770261365,-500.0,0.0001082,2]
[348752033,1736770261375,-500.0,0.0001082,2]
[348752034,1736770261384,-1022.71,0.0001082,2]
[348752035,1736770261395,-1329.0,0.0001082,2]
[348752036,1736770261405,-500.0,0.0001082,2]
[348752037,1736770261415,-500.0,0.0001082,2]
[348752038,1736770261426,-500.0,0.0001082,2]
[348752039,1736770261440,-500.0,0.00010821,2]
[348752040,1736770261450,-827.31,0.00010821,2]
[348752041,1736770261459,-526.64,0.00010821,2]
[348752042,1736770261469,-500.0,0.00010821,2]
[348752043,1736770261479,-500.0,0.00010821,2]
[348752044,1736770261490,-663.37,0.00010821,2]
[348752045,1736770261499,-500.0,0.00010821,2]
[348752046,1736770261509,-562.11,0.00010821,2]
[348752047,1736770261518,-500.0,0.00010821,2]
[348752048,1736770261528,-684.54,0.00010821,2]
[348752049,1736770261537,-867.7,0.00010821,2]
[348752050,1736770261550,-600.7,0.00010821,2]
[348752051,1736770261560,-940.49,0.00010821,2]
[348752052,1736770261569,-914.08,0.00010821,2]
[348752053,1736770261580,-1467.62,0.00010821,2]
[348752054,1736770261590,-3171.42,0.00010821,2]
[348752055,1736770261600,-1328.39,0.00010821,2]
[348752056,1736770261610,-500.0,0.00010821,2]
[348752057,1736770261620,-1922.27,0.00010821,2]
[348752058,1736770261629,-1238.90666846,0.00010831,2]
[348752059,1736770261639,-429.82131162,0.000109,2]
[348752060,1736770261650,-437.88114078,0.000109,2]
[348752061,1736770261659,-1720.1549608,0.000109,2]
[348752062,1736770261669,-4127.951604,0.000109,2]
[348752063,1736770261685,-1238.90666846,0.00010934,2]
[348752064,1736770261695,-500.0,0.00010958,2]
[348752065,1736770261706,-999.0,0.00010958,2]
[348752066,1736770261716,-7500.0,0.00010958,2]
[348752067,1736770261727,-5308.11429073,0.00010958,2]
[348752068,1736770261736,-500.0,0.00010959,2]
[348752069,1736770261747,-200.0,0.00010959,2]
[348752070,1736770261756,-4000.0,0.00010959,2]
[348752071,1736770261766,-150.0,0.00010959,2]
[348752072,1736770261777,-1000.0,0.0001097,2]
[348752073,1736770261788,-900.0,0.0001097,2]
[348752074,1736770261798,-672.44042542,0.00010998,2]
[348752075,1736770261808,-1512.3811269,0.00010999,2]
[348752076,1736770261818,-4496934.03501531,0.00011,4]
[348752077,1736770261828,-246828.42405598,0.00011,2]
[348752078,1736770261838,-4045.85443304,0.00011,2]
[348752079,1736770261848,-2255503.04305737,0.00011,2]
[348752080,1736770262108,-378.2944,0.00011,2]
[348752081,1736770262120,-279063.71768154,0.00011,2]
[348752082,1736770262148,-500.0,9.998e-05,2]
[348752083,1736770262157,-1721.91576446,0.00011,2]
[348752084,1736770262169,-527.32680029,0.00011,2]
[348752085,1736770262185,-456.65,0.00011,2]
[348752086,1736770262196,-5691.00417858,0.00011,2]
[348752087,1736770262915,-299.97378,9.982e-05,2]
[348752088,1736770262931,-200.02622,9.982e-05,2]
[348752089,1736770262941,-500.0,9.998e-05,2]
[348752090,1736770262951,-500.0,9.998e-05,2]
[348752091,1736770262961,-500.0,0.00010256,2]
[348752092,1736770262971,-500.0,0.00010272,2]
[348752093,1736770262981,-500.0,0.00010272,2]
[348752094,1736770262991,-500.0,0.0001053,2]
[348752095,1736770263001,-500.0,0.00010546,2]
[348752096,1736770263012,-500.0,0.00010546,2]
[348752097,1736770263022,-500.0,0.00010804,2]
[348752098,1736770263032,-500.0,0.0001082,2]
[348752099,1736770263042,-176799.97378002,0.00011,2]
[348752100,1736770263069,-46896.9996,0.00011,2]
[348752101,1736770263085,-454.035,0.00011,2]
[348752102,1736770263281,-1230.39352813,0.00011,2]
[348752103,1736770263312,-500.0,0.00010272,2]
[348752104,1736770263323,-8611.80609893,0.00011,2]
[348752105,1736770263345,-659.79828641,0.00011,2]
[348752106,1736770263357,-8395.72116705,0.00011,2]
[348752107,1736770263381,-24605.6191035,0.00011,2]
[348752108,1736770263983,-500.0,9.978e-05,2]
[348752109,1736770263994,-500.0,9.998e-05,2]
[348752110,1736770264004,-500.0,9.998e-05,2]
[348752111,1736770264015,-500.0,9.998e-05,2]
[348752112,1736770264026,-500.0,0.00010252,2]
[348752113,1736770264036,-500.0,0.00010272,2]
[348752114,1736770264047,-500.0,0.00010272,2]
[348752115,1736770264057,-500.0,0.00010272,2]
[348752116,1736770264068,-500.0,0.00010526,2]
[348752117,1736770264079,-500.0,0.00010546,2]
[348752118,1736770264089,-500.0,0.00010546,2]
[348752119,1736770264100,-1104.0,0.0001073,2]
[348752120,1736770264111,-500.0,0.0001082,2]
[348752121,1736770264122,-500.0,0.0001082,2]
[348752122,1736770264133,-174396.0,0.00011,2]
[348752123,1736770264146,-271.86346046,0.00011,2]
[348752124,1736770264172,-455.17662081,0.00011,2]
[348752125,1736770264188,-1642.30169,0.00011,2]
[348752126,1736770264200,-11178.6874801,0.00011,2]
[348752127,1736770264230,-388.63,0.00010546,2]
[348752128,1736770264240,-234.77,0.00010546,2]
[348752129,1736770264251,-6952.1637437,0.00011,2]
[348752130,1736770264262,-306.30600001,0.00011,2]
[348752131,1736770264288,-267.87356736,0.00011,2]
[348752132,1736770264301,-912.45622694,0.00011,2]
[348752133,1736770264313,-153059.9999995,0.00011,2]
[348752134,1736770264333,-4554.55,0.00011,2]
[348752135,1736770536755,667.77,8.219e-05,2]
[348752137,1736770720893,163.31,7.401e-05,2]
[348752141,1736771230646,-1871.0,9e-05,2]
[348752147,1736771244606,2607.04,8e-05,2]
[348752148,1736771244634,1392.96,8e-05,2]
[348752548,1736771431989,-2243.81,8.938e-05,2]
[348752549,1736771431999,-162.99,8.941e-05,2]
[348752550,1736771432008,-1233.84,8.95e-05,2]
[348752551,1736771432018,-2129.0,9e-05,2]
[348752552,1736771432028,-1026.04,9.161e-05,2]
[348752553,1736771432037,-300.0,9.163e-05,2]
[348752554,1736771432046,-250.0,9.164e-05,2]
[348752555,1736771432056,-250.0,9.164e-05,2]
[348752556,1736771432065,-1000.0,9.164e-05,2]
[348752557,1736771432075,-702.42,9.196e-05,2]
[348752558,1736771432084,-504.98,9.201e-05,2]
[348752559,1736771432093,-250.0,9.215e-05,2]
[348752560,1736771432102,-221.09,9.22e-05,2]
[348752561,1736771432112,-565.42,9.282e-05,2]
[348752562,1736771432121,-530.16,9.306e-05,2]
[348752563,1736771432130,-8033.5,9.413e-05,2]
[348752564,1736771432139,-167.12,9.476e-05,2]
[348752565,1736771432148,-1890.4576,9.899e-05,2]
[348752566,1736771432158,-200.0,9.972e-05,2]
[348752567,1736771432167,-439.83625619,9.973e-05,2]
[348752568,1736771432177,-439.83625619,9.974e-05,2]
[348752569,1736771432186,-3751.88647058,9.975e-05,2]
[348752570,1736771432196,-200.0,9.976e-05,2]
[348752571,1736771432206,-3440.17129806,9.978e-05,2]
[348752572,1736771432241,-515.24829337,9.978e-05,2]
[348752573,1736771432253,-547.91945619,9.978e-05,2]
[348752574,1736771432269,-1111.71075969,9.978e-05,2]
[348752575,1736771432279,-500.0,9.978e-05,2]
[348752576,1736771432288,-500.0,9.978e-05,2]
[348752577,1736771432298,-500.0,9.978e-05,2]
[348752578,1736771432307,-500.0,9.978e-05,2]
[348752579,1736771432317,-500.0,9.978e-05,2]
[348752580,1736771432326,-500.0,9.978e-05,2]
[348752581,1736771432335,-500.0,9.978e-05,2]
[348752582,1736771432344,-500.0,9.978e-05,2]
[348752583,1736771432354,-500.0,9.978e-05,2]
[348752584,1736771432363,-500.0,9.978e-05,2]
[348752585,1736771432372,-500.0,9.978e-05,2]
[348752586,1736771432382,-500.0,9.978e-05,2]
[348752587,1736771432391,-500.0,9.978e-05,2]
[348752588,1736771432402,-500.0,9.978e-05,2]
[348752589,1736771432413,-500.0,9.978e-05,2]
[348752590,1736771432423,-500.0,9.978e-05,2]
[348752591,1736771432432,-500.0,9.978e-05,2]
[348752592,1736771432442,-500.0,9.978e-05,2]
[348752593,1736771432451,-500.0,9.978e-05,2]
[348752595,1736771432460,-490.93319322,9.978e-05,2]
[348752597,1736771432471,-500.0,9.978e-05,2]
[348752598,1736771432481,-500.0,9.978e-05,2]
[348752600,1736771432490,-500.0,9.978e-05,2]
[348752602,1736771432500,-500.0,9.978e-05,2]
[348752604,1736771432509,-500.0,9.978e-05,2]
[348752606,1736771432518,-527.36,9.978e-05,2]
[348752608,1736771432527,-592.65,9.978e-05,2]
[348752610,1736771432537,-500.0,9.978e-05,2]
[348752612,1736771432547,-500.0,9.978e-05,2]
[348752614,1736771432556,-500.0,9.978e-05,2]
[348752616,1736771432566,-500.0,9.978e-05,2]
[348752618,1736771432575,-500.0,9.978e-05,2]
[348752620,1736771432584,-500.0,9.978e-05,2]
[348752622,1736771432594,-500.0,9.978e-05,2]
[348752624,1736771432603,-500.0,9.978e-05,2]
[348752626,1736771432612,-500.0,9.978e-05,2]
[348752628,1736771432624,-500.0,9.978e-05,2]
[348752630,1736771432633,-500.0,9.978e-05,2]
[348752632,1736771432642,-500.0,9.978e-05,2]
[348752634,1736771432652,-500.0,9.978e-05,2]
[348752635,1736771432661,-500.0,9.978e-05,2]
[348752638,1736771432673,-284.32763586,9.978e-05,2]
[348752640,1736771432683,-500.0,9.978e-05,2]
[348752641,1736771432694,-500.0,9.978e-05,2]
[348752643,1736771432703,-500.0,9.978e-05,2]
[348752645,1736771432715,-500.0,9.978e-05,2]
[348752647,1736771432726,-500.0,9.978e-05,2]
[348752649,1736771432735,-500.0,9.978e-05,2]
[348752651,1736771432744,-500.0,9.978e-05,2]
[348752653,1736771432753,-500.0,9.978e-05,2]
[348752655,1736771432763,-500.0,9.978e-05,2]
[348752657,1736771432772,-500.0,9.978e-05,2]
[348752659,1736771432781,-500.0,9.978e-05,2]
[348752661,1736771432790,-500.0,9.978e-05,2]
[348752663,1736771432799,-500.0,9.978e-05,2]
[348752665,1736771432808,-500.0,9.978e-05,2]
[348752667,1736771432817,-500.0,9.978e-05,2]
[348752669,1736771432827,-558.37,9.978e-05,2]
[348752671,1736771432836,-500.0,9.978e-05,2]
[348752673,1736771432845,-500.0,9.978e-05,2]
[348752675,1736771432854,-500.0,9.978e-05,2]
[348752677,1736771432863,-500.0,9.978e-05,2]
[348752679,1736771432872,-500.0,9.978e-05,2]
[348752680,1736771432881,-500.0,9.978e-05,2]
[348752682,1736771432890,-500.0,9.978e-05,2]
[348752684,1736771432899,-1664.71,9.978e-05,2]
[348752686,1736771432909,-500.0,9.978e-05,2]
[348752688,1736771432918,-500.0,9.978e-05,2]
[348752690,1736771432927,-500.0,9.978e-05,2]
[348752692,1736771432937,-500.0,9.978e-05,2]
[348752694,1736771432946,-200.0,9.978e-05,2]
[348752696,1736771432955,-500.0,9.979e-05,2]
[348752698,1736771432967,-500.0,9.979e-05,2]
[348752700,1736771432976,-500.0,9.979e-05,2]
[348752702,1736771432986,-500.0,9.979e-05,2]
[348752704,1736771432996,-500.0,9.979e-05,2]
[348752705,1736771433005,-5085.23304767,9.98e-05,2]
[348752707,1736771433015,-439.83625619,9.98e-05,2]
[348752709,1736771433026,-200.0,9.981e-05,2]
[348752711,1736771433036,-439.83625619,9.982e-05,2]
[348752713,1736771433045,-1664.71,9.982e-05,2]
[348752715,1736771433055,-200.0,9.983e-05,2]
[348752717,1736771433066,-3751.88647058,9.987e-05,2]
[348752718,1736771433076,-439.83625619,9.987e-05,2]
[348752720,1736771433086,-3751.88647058,9.989e-05,2]
[348752721,1736771433096,-200.0,9.989e-05,2]
[348752722,1736771433107,-1664.71,9.989e-05,2]
[348752723,1736771433117,-3751.88647058,9.991e-05,2]
[348752724,1736771433127,-3751.88647058,9.992e-05,2]
[348752725,1736771433137,-1664.71,9.992e-05,2]
[348752726,1736771433147,-5615.04980731,9.992e-05,2]
[348752727,1736771433157,-439.83625619,9.994e-05,2]
[348752728,1736771433167,-200.0,9.994e-05,2]
[348752729,1736771433178,-5615.04980731,9.994e-05,2]
[348752730,1736771433187,-5615.04980731,9.995e-05,2]
[348752731,1736771433198,-200.0,9.995e-05,2]
[348752732,1736771433207,-1664.71,9.997e-05,2]
[348752733,1736771433220,-1664.71,9.997e-05,2]
[348752734,1736771433231,-1664.71,9.997e-05,2]
[348752735,1736771433242,-5615.04980731,9.998e-05,2]
[348752736,1736771433252,-575.82,9.998e-05,2]
[348752737,1736771433262,-1883.67,9.998e-05,2]
[348752738,1736771433272,-199.77629333,9.998e-05,2]
[348752739,1736771433283,-937.37,9.998e-05,2]
[348752740,1736771433293,-1170.91,9.998e-05,2]
[348752741,1736771433303,-500.95715125,9.998e-05,2]
[348752742,1736771433312,-501.74191315,9.998e-05,2]
[348752743,1736771433322,-502.45543431,9.998e-05,2]
[348752744,1736771433331,-500.0,9.998e-05,2]
[348752745,1736771433340,-501.51169025,9.998e-05,2]
[348752746,1736771433350,-501.03326783,9.998e-05,2]
[348752747,1736771433359,-524.35534232,9.998e-05,2]
[348752748,1736771433369,-1814.96,9.998e-05,2]
[348752749,1736771433379,-501.26510101,9.998e-05,2]
[348752750,1736771433388,-502.17133478,9.998e-05,2]
[348752751,1736771433398,-501.53718292,9.998e-05,2]
[348752752,1736771433408,-502.23370949,9.998e-05,2]
[348752753,1736771433417,-501.72174143,9.998e-05,2]
[348752754,1736771433427,-306.14,9.998e-05,2]
[348752755,1736771433438,-501.27604371,9.998e-05,2]
[348752756,1736771433448,-562.91504696,9.998e-05,2]
[348752757,1736771433458,-501.24000298,9.998e-05,2]
[348752758,1736771433471,-501.59343028,9.998e-05,2]
[348752759,1736771433481,-1382.65,9.998e-05,2]
[348752760,1736771433492,-500.0,9.998e-05,2]
[348752761,1736771433721,-500.0,9.998e-05,2]
[348752762,1736771433751,-500.0,9.998e-05,2]
[348752763,1736771433761,-490.44,9.998e-05,2]
[348752764,1736771433771,-2091.39,9.998e-05,2]
[348752765,1736771433781,-531.93,9.998e-05,2]
[348752766,1736771433791,-417.39452726,9.998e-05,2]
[348752767,1736771433800,-500.0,9.998e-05,2]
[348752768,1736771433810,-500.0,9.998e-05,2]
[348752769,1736771433820,-500.0,9.998e-05,2]
[348752770,1736771433830,-500.0,9.998e-05,2]
[348752771,1736771433839,-275.56521085,9.998e-05,2]
[348752772,1736771433848,-500.0,9.998e-05,2]
[348752773,1736771433858,-500.0,9.998e-05,2]
[348752774,1736771433867,-500.0,9.998e-05,2]
[348752775,1736771433877,-866.84,9.998e-05,2]
[348752776,1736771433887,-500.0,9.998e-05,2]
[348752777,1736771433896,-766.29,9.998e-05,2]
[348752778,1736771433906,-834.72,9.998e-05,2]
[348752779,1736771433915,-586.82,9.998e-05,2]
[348752780,1736771433924,-1388.75,9.998e-05,2]
[348752781,1736771433933,-1879.77,9.998e-05,2]
[348752782,1736771433943,-930.74,9.998e-05,2]